fUSD/lending_fUSD_20240804
["ID","MTS","AMOUNT","RATE_DAILY","PERIOD"]
[334167771,1722805913548,-500.0,0.00023424,9]
[334167772,1722805913558,-532.76,0.00023424,9]
[334167773,1722805913567,-500.0,0.00023424,9]
[334167774,1722805913582,-236.74,0.00023424,9]
[334167775,1722805913591,-500.0,0.00023424,9]
[334167776,1722805913601,-910.69,0.00023424,9]
[334167777,1722805913610,-500.0,0.00023424,9]
[334167778,1722805913619,-500.0,0.00023424,9]
[334167779,1722805913630,-500.0,0.00023424,9]
[334167780,1722805913639,-640.21,0.00023424,9]
[334167781,1722805913649,-500.0,0.00023424,9]
[334167782,1722805913661,-933.39,0.00023424,9]
[334167783,1722805913671,-500.0,0.00023424,9]
[334167784,1722805913680,-597.26,0.00023424,9]
[334167785,1722805913690,-500.0,0.00023424,9]
[334167786,1722805913700,-500.0,0.00023424,9]
[334167787,1722805913710,-980.26,0.00023424,9]
[334167788,1722805913720,-500.0,0.00023424,9]
[334167789,1722805913730,-500.0,0.00023424,9]
[334167790,1722805913740,-500.0,0.00023424,9]
[334167791,1722805913750,-273.28,0.00023424,9]
[334167792,1722805913759,-500.0,0.00023424,9]
[334167793,1722805913769,-500.0,0.00023424,9]
[334167794,1722805913779,-500.0,0.00023424,9]
[334167795,1722805913789,-500.0,0.00023424,9]
[334167796,1722805913798,-500.0,0.00023424,9]
[334167797,1722805913807,-500.0,0.00023424,9]
[334167798,1722805913817,-500.0,0.00023424,9]
[334167799,1722805913827,-500.0,0.00023424,9]
[334167800,1722805913837,-500.0,0.00023424,9]
[334167801,1722805913847,-500.0,0.00023424,9]
[334167802,1722805913857,-503.50021682,0.00023424,9]
[334167803,1722805913867,-500.0,0.00023424,9]
[334167804,1722805913877,-551.7,0.00023424,9]
[334167805,1722805913886,-500.0,0.00023424,9]
[334167806,1722805913896,-500.0,0.00023424,2]
[334167807,1722805913906,-500.0,0.00023424,9]
[334167808,1722805913916,-500.0,0.00023424,9]
[334167809,1722805913925,-500.0,0.00023424,9]
[334167810,1722805913935,-500.0,0.00023424,9]
[334167811,1722805913945,-500.0,0.00023424,9]
[334167812,1722805913954,-500.0,0.00023424,9]
[334167813,1722805913964,-500.0,0.00023424,9]
[334167814,1722805913974,-500.0,0.00023424,9]
[334167815,1722805913984,-500.0,0.00023424,9]
[334167816,1722805913994,-500.0,0.00023424,9]
[334167817,1722805914004,-500.0,0.00023424,9]
[334167818,1722805914015,-500.0,0.00023424,9]
[334167819,1722805914025,-500.0,0.00023424,9]
[334167820,1722805914035,-765.42,0.00023424,9]
[334167821,1722805914044,-500.0,0.00023424,9]
[334167822,1722805914054,-500.0,0.00023424,9]
[334167823,1722805914064,-597.77,0.00023424,9]
[334167824,1722805914074,-500.0,0.00023424,9]
[334167825,1722805914085,-500.0,0.00023424,9]
[334167826,1722805914095,-500.0,0.00023424,9]
[334167827,1722805914105,-500.0,0.00023424,9]
[334167828,1722805914115,-500.0,0.00023424,9]
[334167829,1722805914125,-500.0,0.00023424,9]
[334167830,1722805914134,-429.87,0.00023424,9]
[334167831,1722805914145,-505.0,0.00023424,9]
[334167832,1722805914158,-500.0,0.00023424,9]
[334167833,1722805914174,-500.0,0.00023424,9]
[334167834,1722805914184,-500.0,0.00023424,9]
[334167835,1722805914194,-500.0,0.00023424,9]
[334167836,1722805914204,-500.0,0.00023424,9]
[334167837,1722805914215,-500.0,0.00023424,9]
[334167838,1722805914224,-500.0,0.00023424,9]
[334167839,1722805914234,-500.0,0.00023424,9]
[334167840,1722805914244,-500.0,0.00023424,9]
[334167841,1722805914254,-500.0,0.00023424,9]
[334167842,1722805914264,-500.0,0.00023424,9]
[334167843,1722805914274,-1821.74,0.00023424,9]
[334167844,1722805914284,-500.0,0.00023424,9]
[334167845,1722805914294,-500.0,0.00023424,9]
[334167846,1722805914304,-500.0,0.00023424,9]
[334167847,1722805914313,-500.0,0.00023424,9]
[334167848,1722805914323,-500.0,0.00023424,9]
[334167849,1722805914333,-500.0,0.00023424,9]
[334167850,1722805914342,-500.0,0.00023424,9]
[334167851,1722805914352,-500.0,0.00023424,9]
[334167852,1722805914363,-2016.72,0.00023424,9]
[334167853,1722805914373,-556.34,0.00023424,9]
[334167854,1722805914383,-500.0,0.00023424,9]
[334167855,1722805914393,-500.0,0.00023424,9]
[334167856,1722805914408,-500.0,0.00023424,9]
[334167857,1722805914417,-500.0,0.00023424,9]
[334167858,1722805914428,-500.88649692,0.00023424,9]
[334167859,1722805914438,-500.0,0.00023424,9]
[334167860,1722805914447,-1044.8,0.00023424,9]
[334167861,1722805914458,-500.0,0.00023424,9]
[334167862,1722805914468,-500.0,0.00023424,9]
[334167863,1722805914478,-500.0,0.00023424,9]
[334167864,1722805914488,-376.07,0.00023424,9]
[334167865,1722805914497,-846.33,0.00023424,9]
[334167866,1722805914507,-500.0,0.00023424,9]
[334167867,1722805914516,-765.93,0.00023424,9]
[334167868,1722805914526,-513.77,0.00023424,9]
[334167869,1722805914536,-500.0,0.00023424,9]
[334167870,1722805914546,-823.05,0.00023424,9]
[334167871,1722805914556,-500.0,0.00023424,9]
[334167872,1722805914566,-575.96,0.00023424,9]
[334167873,1722805914576,-848.47,0.00023424,9]
[334167874,1722805914591,-1092.87,0.00023424,9]
[334167875,1722805914601,-500.0,0.00023424,9]
[334167876,1722805914611,-500.0,0.00023424,9]
[334167877,1722805914620,-500.0,0.00023424,9]
[334167878,1722805914631,-500.0,0.00023424,9]
[334167879,1722805914641,-500.0,0.00023424,9]
[334167880,1722805914658,-500.0,0.00023424,9]
[334167881,1722805914668,-500.0,0.00023424,9]
[334167882,1722805914679,-500.0,0.00023424,9]
[334167883,1722805914689,-500.0,0.00023424,9]
[334167884,1722805914699,-791.06,0.00023424,9]
[334167885,1722805914709,-500.0,0.00023424,9]
[334167886,1722805914718,-500.0,0.00023424,9]
[334167887,1722805914728,-500.0,0.00023424,9]
[334167888,1722805914738,-974.71,0.00023424,9]
[334167889,1722805914747,-500.0,0.00023424,9]
[334167890,1722805914757,-500.0,0.00023424,9]
[334167891,1722805914767,-500.0,0.00023424,9]
[334167892,1722805914777,-500.0,0.00023424,9]
[334167893,1722805914787,-500.0,0.00023424,9]
[334167894,1722805914797,-500.0,0.00023424,9]
[334167895,1722805914807,-1304.52,0.00023424,9]
[334167896,1722805914817,-734.42,0.00023424,9]
[334167897,1722805914827,-500.0,0.00023424,9]
[334167898,1722805914837,-500.0,0.00023424,9]
[334167899,1722805914847,-651.99,0.00023424,9]
[334167900,1722805914857,-1490.63,0.00023424,9]
[334167901,1722805914867,-500.0,0.00023424,9]
[334167902,1722805914876,-1187.98,0.00023424,9]
[334167903,1722805914886,-500.0,0.00023424,9]
[334167904,1722805914894,-500.0,0.00023424,9]
[334167905,1722805914906,-500.0,0.00023424,9]
[334167906,1722805914916,-500.0,0.00023424,9]
[334167907,1722805914926,-500.0,0.00023424,9]
[334167908,1722805914937,-500.0,0.00023424,9]
[334167909,1722805914946,-500.0,0.00023424,9]
[334167910,1722805914956,-1274.28,0.00023424,9]
[334167911,1722805914966,-1378.03,0.00023424,9]
[334167912,1722805914976,-500.0,0.00023424,9]
[334167913,1722805914986,-227.48129846,0.00023424,9]
[334167914,1722805914996,-500.0,0.00023424,9]
[334167915,1722805915006,-500.0,0.00023424,9]
[334167916,1722805915016,-979.35,0.00023424,9]
[334167917,1722805915026,-842.17,0.00023424,9]
[334167918,1722805915036,-500.0,0.00023424,9]
[334167919,1722805915046,-642.36,0.00023424,9]
[334167920,1722805915056,-615.98,0.00023424,9]
[334167921,1722805915066,-500.0,0.00023424,9]
[334167922,1722805915076,-500.0,0.00023424,9]
[334167923,1722805915086,-500.0,0.00023424,9]
[334167924,1722805915097,-1264.35,0.00023424,9]
[334167925,1722805915107,-848.16,0.00023424,9]
[334167926,1722805915117,-500.0,0.00023424,9]
[334167927,1722805915128,-500.0,0.00023424,9]
[334167928,1722805915138,-500.0,0.00023424,9]
[334167929,1722805915150,-500.0,0.00023424,9]
[334167930,1722805915161,-500.0,0.00023424,9]
[334167931,1722805915171,-500.0,0.00023424,9]
[334167932,1722805915181,-500.0,0.00023424,9]
[334167933,1722805915192,-1209.12,0.00023424,9]
[334167934,1722805915203,-500.0,0.00023424,9]
[334167935,1722805915213,-426.09,0.00023424,9]
[334167936,1722805915223,-1010.12,0.00023424,7]
[334167937,1722805915233,-1074.05,0.00023424,9]
[334167938,1722805915243,-500.0,0.00023424,9]
[334167939,1722805915253,-500.0,0.00023424,9]
[334167940,1722805915263,-639.47,0.00023424,9]
[334167941,1722805915273,-2114.96,0.00023424,9]
[334167942,1722805915283,-500.0,0.00023424,9]
[334167943,1722805915293,-514.07,0.00023424,9]
[334167944,1722805915302,-500.0,0.00023424,9]
[334167945,1722805915313,-500.0,0.00023424,9]
[334167946,1722805915323,-1272.78,0.00023424,9]
[334167947,1722805915332,-640.2,0.00023424,9]
[334167948,1722805915342,-823.79,0.00023424,9]
[334167949,1722805915351,-280.4,0.00023424,9]
[334167950,1722805915361,-500.0,0.00023424,9]
[334167951,1722805915371,-991.28,0.00023424,9]
[334167952,1722805915381,-1252.42,0.00023424,9]
[334167953,1722805915480,-636.67,0.00023424,9]
[334167954,1722805915495,-500.0,0.00023424,9]
[334167955,1722805915505,-553.51,0.00023424,9]
[334167956,1722805915514,-500.0,0.00023424,9]
[334167957,1722805915524,-500.0,0.00023424,9]
[334167958,1722805915534,-500.0,0.00023424,9]
[334167959,1722805915543,-500.0,0.00023424,9]
[334167960,1722805915553,-500.0,0.00023424,9]
[334167961,1722805915563,-500.0,0.00023424,9]
[334167962,1722805915573,-500.0,0.00023424,9]
[334167963,1722805915587,-500.0,0.00023424,9]
[334167964,1722805915597,-500.0,0.00023424,9]
[334167965,1722805915607,-608.41,0.00023424,9]
[334167966,1722805915617,-500.0,0.00023424,9]
[334167967,1722805915630,-1368.98,0.00023424,9]
[334167968,1722805915640,-632.04,0.00023424,9]
[334167969,1722805915652,-500.0,0.00023424,9]
[334167970,1722805915663,-500.0,0.00023424,9]
[334167971,1722805915673,-500.0,0.00023424,9]
[334167972,1722805915694,-500.0,0.00023424,9]
[334167973,1722805915703,-500.0,0.00023424,9]
[334167974,1722805915713,-570.88,0.00023424,9]
[334167975,1722805915723,-1262.61,0.00023424,9]
[334167976,1722805915733,-500.0,0.00023424,9]
[334167977,1722805915745,-500.0,0.00023424,9]
[334167978,1722805915755,-757.81,0.00023424,9]
[334167979,1722805915765,-500.0,0.00023424,9]
[334167980,1722805915775,-542.41,0.00023424,9]
[334167981,1722805915786,-500.0,0.00023424,9]
[334167982,1722805915796,-500.0,0.00023424,9]
[334167983,1722805915806,-500.0,0.00023424,9]
[334167984,1722805915816,-720.06,0.00023424,9]
[334167985,1722805915826,-500.0,0.00023424,9]
[334167986,1722805915836,-244.93093388,0.00023424,9]
[334167987,1722805915846,-500.0,0.00023424,9]
[334167988,1722805915856,-500.0,0.00023424,9]
[334167989,1722805915866,-278.06,0.00023424,9]
[334167990,1722805915876,-587.42,0.00023424,9]
[334167991,1722805915887,-654.87,0.00023424,9]
[334167992,1722805915899,-800.42,0.00023424,9]
[334167993,1722805915909,-599.25,0.00023424,9]
[334167994,1722805915919,-500.0,0.00023424,9]
[334167995,1722805915929,-500.0,0.00023424,9]
[334167996,1722805915940,-500.0,0.00023424,9]
[334167997,1722805915949,-500.0,0.00023424,9]
[334167998,1722805915959,-819.66,0.00023424,9]
[334167999,1722805915969,-555.34,0.00023424,9]
[334168000,1722805915980,-1020.58,0.00023424,9]
[334168001,1722805915990,-500.0,0.00023424,9]
[334168002,1722805916000,-759.17,0.00023424,9]
[334168003,1722805916010,-576.69,0.00023424,9]
[334168004,1722805916020,-571.16,0.00023424,9]
[334168005,1722805916030,-500.0,0.00023424,9]
[334168006,1722805916040,-500.0,0.00023424,9]
[334168007,1722805916050,-500.0,0.00023424,9]
[334168008,1722805916059,-500.0,0.00023424,9]
[334168009,1722805916069,-500.0,0.00023424,9]
[334168010,1722805916079,-500.0,0.00023424,9]
[334168011,1722805916089,-898.39,0.00023424,9]
[334168012,1722805916099,-500.0,0.00023424,9]
[334168013,1722805916109,-562.71,0.00023424,9]
[334168014,1722805916119,-500.0,0.00023424,9]
[334168015,1722805916129,-500.0,0.00023424,9]
[334168016,1722805916139,-500.0,0.00023424,9]
[334168017,1722805916150,-546.8,0.00023424,9]
[334168018,1722805916159,-500.0,0.00023424,9]
[334168019,1722805916169,-500.0,0.00023424,9]
[334168020,1722805916179,-500.0,0.00023424,9]
[334168021,1722805916189,-500.0,0.00023424,9]
[334168022,1722805916199,-500.0,0.00023424,9]
[334168023,1722805916208,-856.54,0.00023424,9]
[334168024,1722805916218,-500.0,0.00023424,9]
[334168025,1722805916228,-865.8,0.00023424,9]
[334168026,1722805916238,-150.96,0.00023424,9]
[334168027,1722805916247,-500.0,0.00023424,9]
[334168028,1722805916257,-500.0,0.00023424,9]
[334168029,1722805916267,-500.0,0.00023424,9]
[334168030,1722805916280,-500.0,0.00023424,9]
[334168031,1722805916290,-500.0,0.00023424,9]
[334168032,1722805916299,-500.0,0.00023424,9]
[334168033,1722805916310,-580.98,0.00023424,9]
[334168034,1722805916320,-500.0,0.00023424,9]
[334168035,1722805916330,-1183.88,0.00023424,9]
[334168036,1722805916339,-500.0,0.00023424,9]
[334168037,1722805916349,-573.99,0.00023424,9]
[334168038,1722805916359,-150.0,0.00023424,9]
[334168039,1722805916369,-757.38,0.00023424,9]
[334168040,1722805916378,-750.87,0.00023424,9]
[334168041,1722805916387,-500.0,0.00023424,9]
[334168042,1722805916398,-500.0,0.00023424,9]
[334168043,1722805916408,-500.0,0.00023424,9]
[334168044,1722805916418,-1516.62,0.00023424,9]
[334168045,1722805916428,-500.0,0.00023424,9]
[334168046,1722805916438,-1355.06,0.00023424,9]
[334168047,1722805916448,-500.0,0.00023424,9]
[334168048,1722805916459,-752.11,0.00023424,9]
[334168049,1722805916468,-500.0,0.00023424,9]
[334168050,1722805916478,-500.0,0.00023424,9]
[334168051,1722805916488,-500.0,0.00023424,9]
[334168052,1722805916497,-500.0,0.00023424,9]
[334168053,1722805916507,-500.0,0.00023424,9]
[334168054,1722805916516,-500.0,0.00023424,9]
[334168055,1722805916526,-500.0,0.00023424,9]
[334168056,1722805916536,-213.45,0.00023424,9]
[334168057,1722805916545,-835.14,0.00023424,9]
[334168058,1722805916555,-500.0,0.00023424,9]
[334168059,1722805916565,-500.0,0.00023424,9]
[334168060,1722805916575,-500.0,0.00023424,9]
[334168061,1722805916589,-172.09,0.00023424,9]
[334168062,1722805916598,-500.0,0.00023424,9]
[334168063,1722805916607,-577.51,0.00023424,9]
[334168064,1722805916617,-500.0,0.00023424,9]
[334168065,1722805916627,-604.55,0.00023424,9]
[334168066,1722805916636,-547.47,0.00023424,9]
[334168067,1722805916645,-500.0,0.00023424,9]
[334168068,1722805916657,-500.0,0.00023424,9]
[334168069,1722805916667,-500.0,0.00023424,9]
[334168070,1722805916677,-1049.0,0.00023424,9]
[334168071,1722805916686,-595.85,0.00023424,9]
[334168072,1722805916696,-820.31,0.00023424,9]
[334168073,1722805916705,-500.0,0.00023424,9]
[334168074,1722805916715,-881.32,0.00023424,9]
[334168075,1722805916724,-500.0,0.00023424,9]
[334168076,1722805916733,-500.0,0.00023424,9]
[334168077,1722805916743,-512.9,0.00023424,9]
[334168078,1722805916753,-500.0,0.00023424,9]
[334168079,1722805916763,-500.0,0.00023424,9]
[334168080,1722805916772,-1320.82,0.00023424,9]
[334168081,1722805916782,-1317.26,0.00023424,9]
[334168082,1722805916792,-500.0,0.00023424,9]
[334168083,1722805916801,-500.0,0.00023424,9]
[334168084,1722805916811,-500.0,0.00023424,9]
[334168085,1722805916820,-500.0,0.00023424,9]
[334168086,1722805916830,-500.0,0.00023424,9]
[334168087,1722805916839,-500.0,0.00023424,9]
[334168088,1722805916849,-500.0,0.00023424,9]
[334168089,1722805916859,-775.64,0.00023424,9]
[334168090,1722805916868,-431.34,0.00023424,9]
[334168091,1722805916878,-731.67,0.00023424,9]
[334168092,1722805916887,-500.0,0.00023424,9]
[334168093,1722805916897,-500.0,0.00023424,9]
[334168094,1722805916907,-500.0,0.00023424,9]
[334168095,1722805916916,-500.0,0.00023424,9]
[334168096,1722805916928,-500.0,0.00023424,9]
[334168097,1722805916937,-500.0,0.00023424,9]
[334168098,1722805916948,-500.0,0.00023424,9]
[334168099,1722805916957,-653.66,0.00023424,9]
[334168100,1722805916968,-1198.0,0.00023424,9]
[334168101,1722805916977,-500.0,0.00023424,9]
[334168102,1722805916988,-508.48,0.00023424,9]
[334168103,1722805917265,-500.0,0.00023424,9]
[334168104,1722805917313,-500.0,0.00023424,9]
[334168105,1722805917324,-500.0,0.00023424,9]
[334168106,1722805917335,-616.13,0.00023424,9]
[334168107,1722805917344,-500.0,0.00023424,9]
[334168108,1722805917354,-500.0,0.00023424,9]
[334168109,1722805917365,-500.0,0.00023424,9]
[334168110,1722805917374,-500.0,0.00023424,9]
[334168111,1722805917385,-506.79,0.00023424,9]
[334168112,1722805917394,-500.0,0.00023424,9]
[334168113,1722805917405,-907.97,0.00023424,9]
[334168114,1722805917415,-923.23,0.00023424,9]
[334168115,1722805917425,-500.0,0.00023424,9]
[334168116,1722805917437,-500.0,0.00023424,9]
[334168117,1722805917447,-500.0,0.00023424,9]
[334168118,1722805917458,-500.0,0.00023424,9]
[334168119,1722805917468,-1158.33,0.00023424,9]
[334168120,1722805917478,-500.0,0.00023424,9]
[334168121,1722805917488,-500.0,0.00023424,9]
[334168122,1722805917498,-500.0,0.00023424,9]
[334168123,1722805917508,-1060.73,0.00023424,9]
[334168124,1722805917518,-500.0,0.00023424,9]
[334168125,1722805917528,-500.0,0.00023424,9]
[334168126,1722805917537,-500.0,0.00023424,9]
[334168127,1722805917547,-500.0,0.00023424,9]
[334168128,1722805917556,-702.62,0.00023424,9]
[334168129,1722805917566,-500.0,0.00023424,9]
[334168130,1722805917576,-511.78,0.00023424,9]
[334168131,1722805917590,-500.0,0.00023424,9]
[334168132,1722805917600,-500.0,0.00023424,9]
[334168133,1722805917609,-508.8,0.00023424,9]
[334168134,1722805917618,-500.0,0.00023424,9]
[334168135,1722805917629,-1106.81,0.00023424,9]
[334168136,1722805917639,-500.0,0.00023424,9]
[334168137,1722805917649,-1220.67,0.00023424,9]
[334168138,1722805917665,-500.0,0.00023424,9]
[334168139,1722805917676,-688.53,0.00023424,9]
[334168140,1722805917686,-500.0,0.00023424,9]
[334168141,1722805917696,-605.88,0.00023424,9]
[334168142,1722805917706,-944.03,0.00023424,9]
[334168143,1722805917716,-1410.69,0.00023424,9]
[334168144,1722805917726,-500.0,0.00023424,9]
[334168145,1722805917736,-500.0,0.00023424,9]
[334168146,1722805917746,-500.0,0.00023424,9]
[334168147,1722805917756,-500.0,0.00023424,9]
[334168148,1722805917765,-300.74,0.00023424,9]
[334168149,1722805917775,-500.0,0.00023424,9]
[334168150,1722805917785,-500.0,0.00023424,9]
[334168151,1722805917795,-500.0,0.00023424,9]
[334168152,1722805917805,-697.02,0.00023424,9]
[334168153,1722805917815,-200.0,0.00023424,7]
[334168154,1722805917825,-1251.97,0.00023424,9]
[334168155,1722805917835,-500.0,0.00023424,9]
[334168156,1722805917845,-500.0,0.00023424,9]
[334168157,1722805917855,-500.0,0.00023424,9]
[334168158,1722805917865,-500.0,0.00023424,9]
[334168159,1722805917876,-500.0,0.00023424,9]
[334168160,1722805917887,-750.94,0.00023424,9]
[334168161,1722805917897,-500.0,0.00023424,9]
[334168162,1722805917912,-500.0,0.00023424,9]
[334168163,1722805917921,-500.0,0.00023424,9]
[334168164,1722805917931,-500.0,0.00023424,9]
[334168165,1722805917943,-500.0,0.00023424,9]
[334168166,1722805917953,-947.68,0.00023424,9]
[334168167,1722805917963,-958.7,0.00023424,9]
[334168168,1722805917974,-500.0,0.00023424,9]
[334168169,1722805917985,-500.0,0.00023424,9]
[334168170,1722805917997,-500.0,0.00023424,9]
[334168171,1722805918007,-500.0,0.00023424,9]
[334168172,1722805918016,-500.0,0.00023424,9]
[334168173,1722805918026,-500.0,0.00023424,9]
[334168174,1722805918037,-500.0,0.00023424,9]
[334168175,1722805918047,-1284.92,0.00023424,9]
[334168176,1722805918059,-500.0,0.00023424,9]
[334168177,1722805918069,-500.0,0.00023424,9]
[334168178,1722805918079,-500.0,0.00023424,9]
[334168179,1722805918089,-696.32,0.00023424,9]
[334168180,1722805918099,-500.0,0.00023424,9]
[334168181,1722805918109,-604.31,0.00023424,9]
[334168182,1722805918119,-553.86,0.00023424,9]
[334168183,1722805918128,-500.0,0.00023424,9]
[334168184,1722805918138,-500.0,0.00023424,9]
[334168185,1722805918148,-500.0,0.00023424,9]
[334168186,1722805918159,-500.0,0.00023424,9]
[334168187,1722805918168,-880.04,0.00023424,9]
[334168188,1722805918178,-498.0,0.00023424,9]
[334168189,1722805918187,-500.0,0.00023424,9]
[334168190,1722805918197,-1586.21,0.00023424,9]
[334168191,1722805918207,-500.0,0.00023424,9]
[334168192,1722805918217,-500.0,0.00023424,9]
[334168193,1722805918226,-500.0,0.00023424,9]
[334168194,1722805918237,-500.0,0.00023424,9]
[334168195,1722805918246,-500.0,0.00023424,9]
[334168196,1722805918256,-597.03,0.00023424,9]
[334168197,1722805918266,-528.32,0.00023424,9]
[334168198,1722805918276,-662.94,0.00023424,9]
[334168199,1722805918286,-500.0,0.00023424,9]
[334168200,1722805918297,-500.0,0.00023424,9]
[334168201,1722805918307,-500.0,0.00023424,9]
[334168202,1722805918317,-500.0,0.00023424,2]
[334168203,1722805918326,-500.0,0.00023424,9]
[334168204,1722805918336,-717.42,0.00023424,9]
[334168205,1722805918346,-692.71,0.00023424,9]
[334168206,1722805918356,-500.0,0.00023424,9]
[334168207,1722805918366,-625.21,0.00023424,9]
[334168208,1722805918376,-500.0,0.00023424,9]
[334168209,1722805918386,-500.0,0.00023424,9]
[334168210,1722805918396,-1119.53,0.00023424,9]
[334168211,1722805918408,-799.08,0.00023424,9]
[334168212,1722805918418,-500.0,0.00023424,9]
[334168213,1722805918428,-1250.85,0.00023424,9]
[334168214,1722805918438,-500.0,0.00023424,9]
[334168215,1722805918448,-500.0,0.00023424,9]
[334168216,1722805918458,-500.0,0.00023424,9]
[334168217,1722805918468,-500.0,0.00023424,9]
[334168218,1722805918477,-500.0,0.00023424,9]
[334168219,1722805918486,-500.0,0.00023424,9]
[334168220,1722805918496,-500.0,0.00023424,9]
[334168221,1722805918505,-711.47,0.00023424,9]
[334168222,1722805918514,-500.0,0.00023424,9]
[334168223,1722805918524,-554.17,0.00023424,9]
[334168224,1722805918533,-500.0,0.00023424,9]
[334168225,1722805918543,-500.0,0.00023424,9]
[334168226,1722805918553,-1125.3,0.00023424,9]
[334168227,1722805918563,-977.26,0.00023424,9]
[334168228,1722805918573,-500.0,0.00023424,9]
[334168229,1722805918586,-500.0,0.00023424,9]
[334168230,1722805918596,-650.86,0.00023424,9]
[334168231,1722805918607,-500.0,0.00023424,9]
[334168232,1722805918617,-552.74,0.00023424,9]
[334168233,1722805918626,-179.12646465,0.00023424,9]
[334168234,1722805918635,-598.03,0.00023424,9]
[334168235,1722805918645,-500.0,0.00023424,9]
[334168236,1722805918656,-500.0,0.00023424,9]
[334168237,1722805918666,-766.92,0.00023424,9]
[334168238,1722805918676,-1029.2,0.00023424,9]
[334168239,1722805918685,-500.0,0.00023424,9]
[334168240,1722805918695,-500.0,0.00023424,9]
[334168241,1722805918710,-500.0,0.00023424,9]
[334168242,1722805918719,-1070.84,0.00023424,9]
[334168243,1722805918728,-500.0,0.00023424,9]
[334168244,1722805918738,-1025.12,0.00023424,9]
[334168245,1722805918748,-1123.65,0.00023424,9]
[334168246,1722805918757,-500.0,0.00023424,9]
[334168247,1722805918767,-500.0,0.00023424,9]
[334168248,1722805918776,-935.9,0.00023424,9]
[334168249,1722805918785,-503.18,0.00023424,9]
[334168250,1722805918795,-500.0,0.00023424,9]
[334168251,1722805918804,-967.76,0.00023424,9]
[334168252,1722805918813,-683.02,0.00023424,9]
[334168253,1722805918823,-989.88,0.00023424,9]
[334168254,1722805918832,-500.0,0.00023424,9]
[334168255,1722805918842,-500.0,0.00023424,9]
[334168256,1722805918851,-500.0,0.00023424,9]
[334168257,1722805918861,-500.0,0.00023424,9]
[334168258,1722805918870,-500.0,0.00023424,9]
[334168259,1722805918880,-785.29,0.00023424,9]
[334168260,1722805918889,-665.55,0.00023424,9]
[334168261,1722805918899,-1317.39,0.00023424,9]
[334168262,1722805918909,-707.71,0.00023424,9]
[334168263,1722805918919,-500.0,0.00023424,9]
[334168264,1722805918929,-500.0,0.00023424,9]
[334168265,1722805918939,-1079.16,0.00023424,9]
[334168266,1722805918949,-615.98,0.00023424,9]
[334168267,1722805918958,-609.26,0.00023424,9]
[334168268,1722805918967,-500.0,0.00023424,9]
[334168269,1722805918977,-500.0,0.00023424,9]
[334168270,1722805918986,-500.0,0.00023424,9]